[Event "Titled Tuesday Blitz September 27 Early 2022"]
[White "Martin, Lewis"]
[Black "Ismayil, Malak"]
[WhiteFideId "410551"]
[BlackFideId "13412604"]
[WhiteElo "2145"]
[BlackElo "1879"]
[Result "1-0"]
[Round "10"]
[TimeControl "180+1"]
[Date "2022.09.27"]
[WhiteClock "0:00:35"]
[BlackClock "0:00:02"]

1. e4 {[%clk 0:02:53]}  e5 {[%clk 0:02:58]} 2. Nf3 {[%clk 0:02:53]}  Nc6 {[%clk 0:02:58]} 3. Bb5 {[%clk 0:02:53]}  a6 {[%clk 0:02:57]} 4. Ba4 {[%clk 0:02:53]}  Nf6 {[%clk 0:02:57]} 5. O-O {[%clk 0:02:52]}  b5 {[%clk 0:02:58]} 6. Bb3 {[%clk 0:02:52]}  Be7 {[%clk 0:02:58]} 7. a4 {[%clk 0:02:51]}  Rb8 {[%clk 0:02:57]} 8. axb5 {[%clk 0:02:51]}  axb5 {[%clk 0:02:58]} 9. Re1 {[%clk 0:02:52]}  O-O {[%clk 0:02:57]} 10. d3 {[%clk 0:02:49]}  d6 {[%clk 0:02:57]} 11. h3 {[%clk 0:02:49]}  h6 {[%clk 0:02:57]} 12. Nbd2 {[%clk 0:02:48]}  Be6 {[%clk 0:02:57]} 13. c3 {[%clk 0:02:45]}  Qd7 {[%clk 0:02:52]} 14. Nf1 {[%clk 0:02:44]}  b4 {[%clk 0:02:48]} 15. Bxe6 {[%clk 0:02:40]}  fxe6 {[%clk 0:02:48]} 16. d4 {[%clk 0:02:36]}  exd4 {[%clk 0:02:45]} 17. cxd4 {[%clk 0:02:35]}  Qe8 {[%clk 0:02:23]} 18. Ng3 {[%clk 0:02:33]}  Qg6 {[%clk 0:02:19]} 19. Qb3 {[%clk 0:02:28]}  Qf7 {[%clk 0:02:18]} 20. Ra6 {[%clk 0:02:11]}  Nd8 {[%clk 0:01:58]} 21. Ra7 {[%clk 0:02:10]}  c5 {[%clk 0:01:35]} 22. dxc5 {[%clk 0:02:02]}  dxc5 {[%clk 0:01:36]} 23. Ne5 {[%clk 0:02:02]}  Qe8 {[%clk 0:01:36]} 24. Nf5 {[%clk 0:01:58]}  Nd5 {[%clk 0:00:39]} 25. Nxh6+ {[%clk 0:01:04]}  gxh6 {[%clk 0:00:34]} 26. exd5 {[%clk 0:01:02]}  Rf6 {[%clk 0:00:27]} 27. Qg3+ {[%clk 0:00:56]}  Kh8 {[%clk 0:00:23]} 28. Nd7 {[%clk 0:00:50]}  Rc8 {[%clk 0:00:04]} 29. Nxf6 {[%clk 0:00:46]}  Bxf6 {[%clk 0:00:05]} 30. Bxh6 {[%clk 0:00:42]}  Nf7 {[%clk 0:00:02]} 31. Qg6 {[%clk 0:00:35]} 1-0


[Site "https://www.chess.com"]

[Event "Titled Tuesday Blitz September 27 Early 2022"]
[White "Melikhov, Evgeny V."]
[Black "Sharifov, Mekhriddin"]
[WhiteFideId "4122046"]
[BlackFideId "14701545"]
[WhiteElo "1963"]
[BlackElo "1540"]
[Result "0-1"]
[Round "10"]
[TimeControl "180+1"]
[Date "2022.09.27"]
[WhiteClock "0:00:13"]
[BlackClock "0:00:53"]

1. d4 {[%clk 0:03:00]}  Nf6 {[%clk 0:03:00]} 2. c4 {[%clk 0:03:00]}  e6 {[%clk 0:03:00]} 3. Nc3 {[%clk 0:03:01]}  Bb4 {[%clk 0:03:00]} 4. Qc2 {[%clk 0:03:01]}  d5 {[%clk 0:03:00]} 5. cxd5 {[%clk 0:03:01]}  Qxd5 {[%clk 0:03:01]} 6. e3 {[%clk 0:02:59]}  O-O {[%clk 0:03:00]} 7. Bd2 {[%clk 0:02:59]}  Bxc3 {[%clk 0:03:00]} 8. Bxc3 {[%clk 0:02:59]}  c5 {[%clk 0:03:01]} 9. dxc5 {[%clk 0:02:56]}  Qxc5 {[%clk 0:03:01]} 10. Rc1 {[%clk 0:02:54]}  Nc6 {[%clk 0:03:00]} 11. Bxf6 {[%clk 0:02:51]}  Qxc2 {[%clk 0:03:01]} 12. Rxc2 {[%clk 0:02:51]}  gxf6 {[%clk 0:03:02]} 13. a3 {[%clk 0:02:50]}  Bd7 {[%clk 0:02:57]} 14. Ne2 {[%clk 0:02:49]}  Ne5 {[%clk 0:02:56]} 15. Nc3 {[%clk 0:02:48]}  Bc6 {[%clk 0:02:54]} 16. h3 {[%clk 0:02:33]}  Rfd8 {[%clk 0:02:52]} 17. f4 {[%clk 0:02:30]}  Nd3+ {[%clk 0:02:44]} 18. Bxd3 {[%clk 0:02:29]}  Rxd3 {[%clk 0:02:45]} 19. Ke2 {[%clk 0:02:29]}  Rad8 {[%clk 0:02:42]} 20. Rg1 {[%clk 0:02:22]}  h5 {[%clk 0:02:37]} 21. g3 {[%clk 0:02:21]}  Kf8 {[%clk 0:02:35]} 22. Rd1 {[%clk 0:02:11]}  Bb5 {[%clk 0:02:35]} 23. Ke1 {[%clk 0:02:06]}  Rxe3+ {[%clk 0:02:31]} 24. Kf2 {[%clk 0:02:07]}  Rxd1 {[%clk 0:02:31]} 25. Kxe3 {[%clk 0:01:58]}  Rd3+ {[%clk 0:02:30]} 26. Kf2 {[%clk 0:01:46]}  Bc6 {[%clk 0:02:30]} 27. Ne2 {[%clk 0:01:35]}  Rf3+ {[%clk 0:02:24]} 28. Ke1 {[%clk 0:01:33]}  h4 {[%clk 0:02:17]} 29. gxh4 {[%clk 0:01:25]}  Rxh3 {[%clk 0:02:18]} 30. Nd4 {[%clk 0:01:24]}  Be4 {[%clk 0:02:03]} 31. Rc4 {[%clk 0:01:16]}  f5 {[%clk 0:01:57]} 32. Nb5 {[%clk 0:01:12]}  Rxh4 {[%clk 0:01:53]} 33. Nd6 {[%clk 0:01:06]}  Rxf4 {[%clk 0:01:53]} 34. Rc7 {[%clk 0:01:05]}  Rh4 {[%clk 0:01:40]} 35. Rxf7+ {[%clk 0:01:05]}  Kg8 {[%clk 0:01:40]} 36. Re7 {[%clk 0:01:04]}  Bd5 {[%clk 0:01:38]} 37. Nxb7 {[%clk 0:00:58]}  Rh7 {[%clk 0:01:18]} 38. Re8+ {[%clk 0:00:55]}  Kf7 {[%clk 0:01:17]} 39. Nd6+ {[%clk 0:00:54]}  Kf6 {[%clk 0:01:17]} 40. b4 {[%clk 0:00:49]}  f4 {[%clk 0:01:15]} 41. b5 {[%clk 0:00:41]}  Ke5 {[%clk 0:01:07]} 42. Rd8 {[%clk 0:00:30]}  f3 {[%clk 0:01:02]} 43. a4 {[%clk 0:00:24]}  Kd4 {[%clk 0:00:55]} 44. a5 {[%clk 0:00:22]}  Ke3 {[%clk 0:00:54]} 45. Nf5+ {[%clk 0:00:13]}  exf5 {[%clk 0:00:53]} 0-1


[Site "https://www.chess.com"]

[Event "Titled Tuesday Blitz September 27 Early 2022"]
[White "Mihailidis, Anastasios"]
[Black "Fernandez Hernandez, Gerardo"]
[WhiteFideId "4205588"]
[BlackFideId "2207400"]
[WhiteElo "2312"]
[BlackElo "2170"]
[Result "1-0"]
[Round "10"]
[TimeControl "180+1"]
[Date "2022.09.27"]
[WhiteClock "0:00:16"]
[BlackClock "0:00:01"]

1. e4 {[%clk 0:02:56]}  e6 {[%clk 0:03:00]} 2. d4 {[%clk 0:02:55]}  d5 {[%clk 0:03:00]} 3. Nd2 {[%clk 0:02:55]}  Nc6 {[%clk 0:03:00]} 4. c3 {[%clk 0:02:54]}  e5 {[%clk 0:02:59]} 5. exd5 {[%clk 0:02:51]}  Qxd5 {[%clk 0:02:59]} 6. dxe5 {[%clk 0:02:47]}  Nxe5 {[%clk 0:02:51]} 7. Ngf3 {[%clk 0:02:47]}  Nxf3+ {[%clk 0:02:49]} 8. Qxf3 {[%clk 0:02:45]}  Qxf3 {[%clk 0:02:47]} 9. Nxf3 {[%clk 0:02:45]}  Nf6 {[%clk 0:02:44]} 10. Bf4 {[%clk 0:02:45]}  Nd5 {[%clk 0:02:35]} 11. Bg3 {[%clk 0:02:43]}  Bg4 {[%clk 0:02:30]} 12. O-O-O {[%clk 0:02:39]}  O-O-O {[%clk 0:02:15]} 13. Bc4 {[%clk 0:02:33]}  c6 {[%clk 0:01:58]} 14. Bxd5 {[%clk 0:02:26]}  cxd5 {[%clk 0:01:44]} 15. Rd3 {[%clk 0:02:22]}  g6 {[%clk 0:01:28]} 16. Rhd1 {[%clk 0:02:15]}  Bh6+ {[%clk 0:01:27]} 17. Kc2 {[%clk 0:02:04]}  Bf5 {[%clk 0:01:25]} 18. Ne5 {[%clk 0:02:03]}  Rhf8 {[%clk 0:01:06]} 19. Kb3 {[%clk 0:01:51]}  Bxd3 {[%clk 0:01:03]} 20. Nxd3 {[%clk 0:01:50]}  Rfe8 {[%clk 0:00:51]} 21. Ne5 {[%clk 0:01:49]}  Re7 {[%clk 0:00:36]} 22. Nd3 {[%clk 0:01:44]}  Re2 {[%clk 0:00:26]} 23. Ne5 {[%clk 0:01:37]}  Rd2 {[%clk 0:00:20]} 24. Rb1 {[%clk 0:01:17]}  Re8 {[%clk 0:00:19]} 25. Nxf7 {[%clk 0:01:16]}  Bg7 {[%clk 0:00:19]} 26. Nd6+ {[%clk 0:01:16]}  Kd7 {[%clk 0:00:19]} 27. Nxe8 {[%clk 0:01:15]}  Kxe8 {[%clk 0:00:20]} 28. Re1+ {[%clk 0:01:14]}  Kd7 {[%clk 0:00:20]} 29. h3 {[%clk 0:01:00]}  d4 {[%clk 0:00:20]} 30. a3 {[%clk 0:00:48]}  dxc3 {[%clk 0:00:20]} 31. bxc3 {[%clk 0:00:48]}  Rd3 {[%clk 0:00:19]} 32. Re3 {[%clk 0:00:47]}  Rd1 {[%clk 0:00:12]} 33. Kc2 {[%clk 0:00:44]}  Ra1 {[%clk 0:00:11]} 34. Kb2 {[%clk 0:00:41]}  Rd1 {[%clk 0:00:11]} 35. Kc2 {[%clk 0:00:40]}  Ra1 {[%clk 0:00:10]} 36. Bh4 {[%clk 0:00:38]}  Kc6 {[%clk 0:00:08]} 37. Re7 {[%clk 0:00:24]}  Bf8 {[%clk 0:00:08]} 38. Rxh7 {[%clk 0:00:21]}  Ra2+ {[%clk 0:00:09]} 39. Kd3 {[%clk 0:00:20]}  Rxa3 {[%clk 0:00:09]} 40. Rf7 {[%clk 0:00:20]}  Bb4 {[%clk 0:00:07]} 41. Bf6 {[%clk 0:00:19]}  b5 {[%clk 0:00:04]} 42. Bd4 {[%clk 0:00:17]}  Bxc3 {[%clk 0:00:04]} 43. Bxc3 {[%clk 0:00:17]}  b4 {[%clk 0:00:04]} 44. Rf6+ {[%clk 0:00:16]}  Kc7 {[%clk 0:00:02]} 45. Rxg6 {[%clk 0:00:16]}  Rxc3+ {[%clk 0:00:03]} 46. Kd2 {[%clk 0:00:16]}  a5 {[%clk 0:00:02]} 47. Ra6 {[%clk 0:00:15]}  Ra3 {[%clk 0:00:01]} 48. Kc2 {[%clk 0:00:16]} 1-0


[Site "https://www.chess.com"]

[Event "Titled Tuesday Blitz September 27 Early 2022"]
[White "Mouhamad, Joachim"]
[Black "Vagman, Roy"]
[WhiteFideId "656410"]
[BlackFideId "2828995"]
[WhiteElo "2147"]
[BlackElo "1945"]
[Result "0-1"]
[Round "10"]
[TimeControl "180+1"]
[Date "2022.09.27"]
[WhiteClock "0:00:02"]
[BlackClock "0:00:03"]

1. e4 {[%clk 0:03:00]}  c5 {[%clk 0:02:57]} 2. d4 {[%clk 0:03:00]}  cxd4 {[%clk 0:02:57]} 3. c3 {[%clk 0:03:01]}  dxc3 {[%clk 0:02:57]} 4. Nxc3 {[%clk 0:03:02]}  Nc6 {[%clk 0:02:57]} 5. Nf3 {[%clk 0:03:02]}  d6 {[%clk 0:02:45]} 6. Bc4 {[%clk 0:03:01]}  Nf6 {[%clk 0:02:45]} 7. O-O {[%clk 0:02:55]}  e6 {[%clk 0:02:35]} 8. Re1 {[%clk 0:02:51]}  Be7 {[%clk 0:02:35]} 9. a3 {[%clk 0:02:45]}  O-O {[%clk 0:02:33]} 10. h3 {[%clk 0:02:44]}  a6 {[%clk 0:02:33]} 11. Ba2 {[%clk 0:02:42]}  b5 {[%clk 0:02:33]} 12. Bf4 {[%clk 0:02:25]}  Bb7 {[%clk 0:02:31]} 13. Qd2 {[%clk 0:02:21]}  Qc7 {[%clk 0:02:19]} 14. Rac1 {[%clk 0:02:20]}  Rad8 {[%clk 0:02:14]} 15. Nd5 {[%clk 0:02:16]}  Qb8 {[%clk 0:01:59]} 16. Nxe7+ {[%clk 0:02:15]}  Nxe7 {[%clk 0:01:57]} 17. Bb1 {[%clk 0:02:10]}  Ng6 {[%clk 0:01:53]} 18. Bg3 {[%clk 0:02:10]}  Rd7 {[%clk 0:00:57]} 19. Nd4 {[%clk 0:02:02]}  Ne5 {[%clk 0:00:53]} 20. b3 {[%clk 0:01:58]}  Rfd8 {[%clk 0:00:47]} 21. Bh4 {[%clk 0:01:41]}  Ng6 {[%clk 0:00:41]} 22. Bg3 {[%clk 0:01:38]}  h6 {[%clk 0:00:40]} 23. Nc6 {[%clk 0:01:35]}  Bxc6 {[%clk 0:00:39]} 24. Rxc6 {[%clk 0:01:36]}  Ne5 {[%clk 0:00:39]} 25. Rcc1 {[%clk 0:01:31]}  Ng6 {[%clk 0:00:36]} 26. b4 {[%clk 0:01:29]}  Qb7 {[%clk 0:00:34]} 27. Kh2 {[%clk 0:01:26]}  Ne5 {[%clk 0:00:34]} 28. f3 {[%clk 0:01:17]}  Nc4 {[%clk 0:00:34]} 29. Qd3 {[%clk 0:01:07]}  g6 {[%clk 0:00:33]} 30. Qd4 {[%clk 0:01:00]}  e5 {[%clk 0:00:31]} 31. Qd3 {[%clk 0:00:57]}  g5 {[%clk 0:00:32]} 32. Ba2 {[%clk 0:00:57]}  Nb6 {[%clk 0:00:27]} 33. h4 {[%clk 0:00:52]}  Kg7 {[%clk 0:00:27]} 34. Qe3 {[%clk 0:00:50]}  Kg6 {[%clk 0:00:27]} 35. Red1 {[%clk 0:00:43]}  Na4 {[%clk 0:00:23]} 36. Be1 {[%clk 0:00:41]}  g4 {[%clk 0:00:21]} 37. Bd2 {[%clk 0:00:39]}  Rh8 {[%clk 0:00:19]} 38. Kg1 {[%clk 0:00:34]}  Rc7 {[%clk 0:00:17]} 39. Rxc7 {[%clk 0:00:34]}  Qxc7 {[%clk 0:00:18]} 40. Rc1 {[%clk 0:00:34]}  Qd7 {[%clk 0:00:17]} 41. f4 {[%clk 0:00:34]}  exf4 {[%clk 0:00:16]} 42. Qxf4 {[%clk 0:00:34]}  Nh5 {[%clk 0:00:15]} 43. Qe3 {[%clk 0:00:30]}  Qe7 {[%clk 0:00:13]} 44. Bb1 {[%clk 0:00:21]}  Qe5 {[%clk 0:00:12]} 45. Rd1 {[%clk 0:00:15]}  Rh7 {[%clk 0:00:12]} 46. Be1 {[%clk 0:00:15]}  Nb2 {[%clk 0:00:11]} 47. Rd5 {[%clk 0:00:15]}  Nc4 {[%clk 0:00:10]} 48. Qf2 {[%clk 0:00:14]}  Qe6 {[%clk 0:00:03]} 49. e5+ {[%clk 0:00:13]}  Kg7 {[%clk 0:00:03]} 50. Rxd6 {[%clk 0:00:07]}  Nxd6 {[%clk 0:00:04]} 51. exd6 {[%clk 0:00:08]}  Rh8 {[%clk 0:00:04]} 52. Bc3+ {[%clk 0:00:07]}  Nf6 {[%clk 0:00:04]} 53. Ba2 {[%clk 0:00:06]}  Qxd6 {[%clk 0:00:03]} 54. Qg3 {[%clk 0:00:02]}  Qxg3 {[%clk 0:00:03]} 0-1


[Site "https://www.chess.com"]

[Event "Titled Tuesday Blitz September 27 Early 2022"]
[White "Murtazin, Ruslan"]
[Black "Papp, Levente"]
[WhiteFideId "24175960"]
[BlackFideId "751243"]
[WhiteElo "2212"]
[BlackElo "2341"]
[Result "1/2-1/2"]
[Round "10"]
[TimeControl "180+1"]
[Date "2022.09.27"]
[WhiteClock "0:00:01"]
[BlackClock "0:00:05"]

1. e4 {[%clk 0:03:00]}  e6 {[%clk 0:02:58]} 2. Nf3 {[%clk 0:03:00]}  d5 {[%clk 0:02:57]} 3. Nc3 {[%clk 0:03:01]}  Nf6 {[%clk 0:02:54]} 4. e5 {[%clk 0:03:01]}  Nfd7 {[%clk 0:02:53]} 5. d4 {[%clk 0:03:02]}  c5 {[%clk 0:02:53]} 6. dxc5 {[%clk 0:03:03]}  Nc6 {[%clk 0:02:53]} 7. Bf4 {[%clk 0:03:03]}  Bxc5 {[%clk 0:02:51]} 8. Bd3 {[%clk 0:03:03]}  h6 {[%clk 0:02:47]} 9. h4 {[%clk 0:03:03]}  Qb6 {[%clk 0:02:31]} 10. Qd2 {[%clk 0:03:02]}  Qxb2 {[%clk 0:02:06]} 11. Rb1 {[%clk 0:02:55]}  Qa3 {[%clk 0:02:06]} 12. Nb5 {[%clk 0:02:50]}  Qxa2 {[%clk 0:01:57]} 13. O-O {[%clk 0:02:50]}  Qa5 {[%clk 0:01:39]} 14. Qxa5 {[%clk 0:02:30]}  Nxa5 {[%clk 0:01:37]} 15. Nc7+ {[%clk 0:02:31]}  Kd8 {[%clk 0:01:33]} 16. Nxa8 {[%clk 0:02:32]}  b6 {[%clk 0:01:22]} 17. Bd2 {[%clk 0:02:15]}  Nc6 {[%clk 0:00:57]} 18. Rfe1 {[%clk 0:02:06]}  Bb7 {[%clk 0:00:56]} 19. Nxb6 {[%clk 0:02:06]}  axb6 {[%clk 0:00:55]} 20. Ra1 {[%clk 0:02:04]}  Ke7 {[%clk 0:00:47]} 21. Bb5 {[%clk 0:02:01]}  Rb8 {[%clk 0:00:23]} 22. Ra2 {[%clk 0:01:58]}  Nd4 {[%clk 0:00:20]} 23. Nxd4 {[%clk 0:01:38]}  Bxd4 {[%clk 0:00:20]} 24. Bb4+ {[%clk 0:01:39]}  Bc5 {[%clk 0:00:15]} 25. Bxc5+ {[%clk 0:01:38]}  Nxc5 {[%clk 0:00:13]} 26. Ra7 {[%clk 0:01:33]}  Kd8 {[%clk 0:00:07]} 27. f3 {[%clk 0:01:33]}  Kc7 {[%clk 0:00:07]} 28. Kf2 {[%clk 0:01:23]}  Rd8 {[%clk 0:00:06]} 29. Ke3 {[%clk 0:01:22]}  d4+ {[%clk 0:00:05]} 30. Kd2 {[%clk 0:01:22]}  f6 {[%clk 0:00:06]} 31. Bc4 {[%clk 0:01:17]}  f5 {[%clk 0:00:06]} 32. g4 {[%clk 0:01:14]}  fxg4 {[%clk 0:00:03]} 33. fxg4 {[%clk 0:01:14]}  Rf8 {[%clk 0:00:03]} 34. Rf1 {[%clk 0:01:10]}  Rxf1 {[%clk 0:00:01]} 35. Bxf1 {[%clk 0:01:11]}  Kb8 {[%clk 0:00:01]} 36. Ra1 {[%clk 0:01:02]}  g5 {[%clk 0:00:02]} 37. hxg5 {[%clk 0:01:00]}  hxg5 {[%clk 0:00:02]} 38. Be2 {[%clk 0:00:41]}  Kc7 {[%clk 0:00:02]} 39. Rf1 {[%clk 0:00:38]}  Ne4+ {[%clk 0:00:02]} 40. Kd3 {[%clk 0:00:35]}  Ng3 {[%clk 0:00:02]} 41. Rf7+ {[%clk 0:00:34]}  Kb8 {[%clk 0:00:03]} 42. Bd1 {[%clk 0:00:33]}  Bd5 {[%clk 0:00:02]} 43. Kxd4 {[%clk 0:00:33]}  Ne4 {[%clk 0:00:02]} 44. c4 {[%clk 0:00:31]}  Bc6 {[%clk 0:00:02]} 45. Re7 {[%clk 0:00:27]}  Nc5 {[%clk 0:00:02]} 46. Bc2 {[%clk 0:00:26]}  Bf3 {[%clk 0:00:01]} 47. Rg7 {[%clk 0:00:21]}  Bxg4 {[%clk 0:00:01]} 48. Rxg5 {[%clk 0:00:21]}  Bf3 {[%clk 0:00:02]} 49. Rg7 {[%clk 0:00:20]}  Bc6 {[%clk 0:00:03]} 50. Re7 {[%clk 0:00:20]}  Bd7 {[%clk 0:00:03]} 51. Bg6 {[%clk 0:00:18]}  Kc7 {[%clk 0:00:03]} 52. Rh7 {[%clk 0:00:17]}  Kd8 {[%clk 0:00:04]} 53. Rh8+ {[%clk 0:00:17]}  Kc7 {[%clk 0:00:04]} 54. Bf7 {[%clk 0:00:17]}  Bc6 {[%clk 0:00:04]} 55. Be8 {[%clk 0:00:17]}  Bb7 {[%clk 0:00:04]} 56. Rh7+ {[%clk 0:00:16]}  Kd8 {[%clk 0:00:04]} 57. Bf7 {[%clk 0:00:14]}  Bc6 {[%clk 0:00:03]} 58. Bg8 {[%clk 0:00:14]}  Bd7 {[%clk 0:00:03]} 59. Bf7 {[%clk 0:00:13]}  Bc6 {[%clk 0:00:03]} 60. Bg6 {[%clk 0:00:13]}  Bd7 {[%clk 0:00:03]} 61. Be4 {[%clk 0:00:12]}  Kc7 {[%clk 0:00:04]} 62. Bf3 {[%clk 0:00:11]}  Kd8 {[%clk 0:00:04]} 63. Kc3 {[%clk 0:00:08]}  Kc8 {[%clk 0:00:04]} 64. Kd4 {[%clk 0:00:06]}  Kd8 {[%clk 0:00:04]} 65. Ke3 {[%clk 0:00:04]}  Kc8 {[%clk 0:00:04]} 66. Be2 {[%clk 0:00:05]}  Kd8 {[%clk 0:00:04]} 67. Kf4 {[%clk 0:00:05]}  Kc8 {[%clk 0:00:05]} 68. Kg5 {[%clk 0:00:04]}  Ne4+ {[%clk 0:00:05]} 69. Kf4 {[%clk 0:00:04]}  Nc5 {[%clk 0:00:05]} 70. Rh4 {[%clk 0:00:02]}  Kd8 {[%clk 0:00:05]} 71. Kg5 {[%clk 0:00:03]}  Kc7 {[%clk 0:00:04]} 72. Kf6 {[%clk 0:00:03]}  Na4 {[%clk 0:00:04]} 73. Ke7 {[%clk 0:00:02]}  Nc3 {[%clk 0:00:04]} 74. Bf3 {[%clk 0:00:02]}  Na4 {[%clk 0:00:03]} 75. Rh7 {[%clk 0:00:02]}  Nc5 {[%clk 0:00:04]} 76. Bg4 {[%clk 0:00:02]}  b5 {[%clk 0:00:02]} 77. cxb5 {[%clk 0:00:02]}  Kb6 {[%clk 0:00:03]} 78. Kf6 {[%clk 0:00:01]}  Bxb5 {[%clk 0:00:04]} 79. Bxe6 {[%clk 0:00:01]}  Bc4 {[%clk 0:00:05]} 80. Bxc4 {[%clk 0:00:01]}  Kc6 {[%clk 0:00:05]} 1/2-1/2


[Site "https://www.chess.com"]

[Event "Titled Tuesday Blitz September 27 Early 2022"]
[White "Neal, James"]
[Black "Dilmukhametov, Artur"]
[WhiteFideId "2089300"]
[BlackFideId "24179922"]
[WhiteElo "2059"]
[BlackElo "2206"]
[Result "1-0"]
[Round "10"]
[TimeControl "180+1"]
[Date "2022.09.27"]
[WhiteClock "0:01:01"]
[BlackClock "0:00:45"]

1. e4 {[%clk 0:03:00]}  e6 {[%clk 0:02:56]} 2. d4 {[%clk 0:03:00]}  d5 {[%clk 0:02:55]} 3. Nc3 {[%clk 0:02:58]}  Bb4 {[%clk 0:02:53]} 4. exd5 {[%clk 0:02:52]}  exd5 {[%clk 0:02:48]} 5. Bd3 {[%clk 0:02:50]}  Ne7 {[%clk 0:02:47]} 6. Ne2 {[%clk 0:02:45]}  c6 {[%clk 0:02:46]} 7. Ng3 {[%clk 0:02:39]}  Bg4 {[%clk 0:02:39]} 8. f3 {[%clk 0:02:28]}  Bh5 {[%clk 0:02:38]} 9. Nxh5 {[%clk 0:02:22]}  Kf8 {[%clk 0:02:32]} 10. O-O {[%clk 0:02:18]}  Qc7 {[%clk 0:02:29]} 11. Bf4 {[%clk 0:02:09]}  Bd6 {[%clk 0:02:28]} 12. Ne2 {[%clk 0:02:03]}  Ng6 {[%clk 0:02:27]} 13. Bxd6+ {[%clk 0:01:49]}  Qxd6 {[%clk 0:02:25]} 14. Neg3 {[%clk 0:01:47]}  Nd7 {[%clk 0:02:22]} 15. Nxg7 {[%clk 0:01:40]}  Rg8 {[%clk 0:02:16]} 16. N7f5 {[%clk 0:01:31]}  Qf6 {[%clk 0:02:14]} 17. Qd2 {[%clk 0:01:18]}  Re8 {[%clk 0:02:12]} 18. Qh6+ {[%clk 0:01:14]}  Rg7 {[%clk 0:02:07]} 19. Nh5 {[%clk 0:01:09]}  Rd8 {[%clk 0:00:47]} 20. Nxf6 {[%clk 0:01:01]}  Nxf6 {[%clk 0:00:45]} 1-0


[Site "https://www.chess.com"]

[Event "Titled Tuesday Blitz September 27 Early 2022"]
[White "Niekras, Dawid"]
[Black "Levitan, Caleb Levi"]
[WhiteFideId "1160451"]
[BlackFideId "14332620"]
[WhiteElo "2296"]
[BlackElo "1811"]
[Result "1-0"]
[Round "10"]
[TimeControl "180+1"]
[Date "2022.09.27"]
[WhiteClock "0:00:33"]
[BlackClock "0:00:05"]

1. e4 {[%clk 0:03:00]}  c5 {[%clk 0:02:59]} 2. Nf3 {[%clk 0:03:01]}  e6 {[%clk 0:03:00]} 3. d4 {[%clk 0:03:01]}  cxd4 {[%clk 0:03:00]} 4. Nxd4 {[%clk 0:03:01]}  a6 {[%clk 0:03:00]} 5. Bd3 {[%clk 0:03:01]}  Bc5 {[%clk 0:02:58]} 6. Nb3 {[%clk 0:03:01]}  Ba7 {[%clk 0:02:58]} 7. Qg4 {[%clk 0:03:02]}  Nf6 {[%clk 0:02:56]} 8. Qg3 {[%clk 0:03:02]}  Nc6 {[%clk 0:02:46]} 9. Nc3 {[%clk 0:03:01]}  d6 {[%clk 0:02:21]} 10. Bg5 {[%clk 0:03:00]}  h6 {[%clk 0:02:17]} 11. Bd2 {[%clk 0:03:00]}  b5 {[%clk 0:01:57]} 12. O-O-O {[%clk 0:02:42]}  e5 {[%clk 0:01:50]} 13. Qxg7 {[%clk 0:01:51]}  Rg8 {[%clk 0:01:03]} 14. Qxh6 {[%clk 0:01:51]}  Ng4 {[%clk 0:00:56]} 15. Qh7 {[%clk 0:01:50]}  Rf8 {[%clk 0:00:43]} 16. Nd5 {[%clk 0:01:20]}  Be6 {[%clk 0:00:28]} 17. Qg7 {[%clk 0:00:45]}  Nxf2 {[%clk 0:00:10]} 18. Nf6+ {[%clk 0:00:45]}  Ke7 {[%clk 0:00:11]} 19. Bg5 {[%clk 0:00:40]}  Nxd3+ {[%clk 0:00:08]} 20. Rxd3 {[%clk 0:00:40]}  Nd4 {[%clk 0:00:06]} 21. Nd5+ {[%clk 0:00:38]}  Kd7 {[%clk 0:00:06]} 22. Bxd8 {[%clk 0:00:39]}  Raxd8 {[%clk 0:00:05]} 23. Nxd4 {[%clk 0:00:33]}  Bxd4 {[%clk 0:00:06]} 24. Rxd4 {[%clk 0:00:33]}  exd4 {[%clk 0:00:06]} 25. Qxd4 {[%clk 0:00:34]}  Rg8 {[%clk 0:00:05]} 26. Qa7+ {[%clk 0:00:33]}  Kc6 {[%clk 0:00:05]} 27. Qc7# {[%clk 0:00:33]} 1-0


[Site "https://www.chess.com"]